Workbook

Sheet Budget-5 Profit Centers
B1: POINT HERE FIRST
A2: ANNUAL BUDGET FORECAST - 5 PROFIT CENTERS
A3: Site | B3: Operating Exp | C3: Month | D3: Month | E3: Month | F3: Q1 | G3: Month | H3: Month | I3: Month | J3: Q2 | K3: S1 | L3: Month | M3: Month | N3: Month | O3: Q3 | P3: Month | Q3: Month | R3: Month | S3: Q4 | T3: S2 | U3: Year
C4: 1 | D4: 2 | E4: 3 | G4: 4 | H4: 5 | I4: 6 | L4: 7 | M4: 8 | N4: 9 | P4: 10 | Q4: 11 | R4: 12
A5: Site 1 | C5: =SUM(C6:C11) -> $31,175 | D5: $30,675 | E5: $31,175 | F5: $93,025 | G5: $31,175 | H5: $32,075 | I5: $34,375 | J5: $97,625 | K5: $190,650 | L5: $34,175 | M5: $34,150 | N5: $34,775 | O5: $103,100 | P5: $34,675 | Q5: $35,575 | R5: $35,575 | S5: $105,825 | T5: $208,925 | U5: $399,575
B6: Salaries | C6: 10000 | D6: 10000 | E6: 10000 | F6: =SUM(C6:E6) -> 30000 | G6: 10000 | H6: 10000 | I6: 13000 | J6: =SUM(G6:I6) -> 33000 | K6: =J6+F6 -> 63000 | L6: 12000 | M6: 12000 | N6: 12000 | O6: =SUM(L6:N6) -> 36000 | P6: 12000 | Q6: 12000 | R6: 12000 | S6: =SUM(P6:R6) -> 36000 | T6: =S6+O6 -> 72000 | U6: =T6+K6 -> 135000
B7: Supplies | C7: 3000 | D7: 2500 | E7: 3000 | F7: 8500 | G7: 2500 | H7: 3000 | I7: 2500 | J7: 8000 | K7: 16500 | L7: 3300 | M7: 2800 | N7: 3300 | O7: 9400 | P7: 2800 | Q7: 3300 | R7: 2800 | S7: 8900 | T7: 18300 | U7: 34800
B8: Equipment | C8: 4575 | D8: 4575 | E8: 4575 | F8: 13725 | G8: 4575 | H8: 4575 | I8: 4575 | J8: 13725 | K8: 27450 | L8: 4575 | M8: 4575 | N8: 4575 | O8: 13725 | P8: 4575 | Q8: 4575 | R8: 4575 | S8: 13725 | T8: 27450 | U8: 54900
B9: Lease Pmts | C9: 9600 | D9: 9600 | E9: 9600 | F9: 28800 | G9: 9600 | H9: 9600 | I9: 9600 | J9: 28800 | K9: 57600 | L9: 9600 | M9: 9600 | N9: 9600 | O9: 28800 | P9: 9600 | Q9: 9600 | R9: 9600 | S9: 28800 | T9: 57600 | U9: 115200
B10: Advertising | C10: 2500 | D10: 2500 | E10: 2500 | F10: 7500 | G10: 2500 | H10: 2500 | I10: 2500 | J10: 7500 | K10: 15000 | L10: 2500 | M10: 2500 | N10: 2500 | O10: 7500 | P10: 2500 | Q10: 2500 | R10: 2500 | S10: 7500 | T10: 15000 | U10: 30000
B11: Other | C11: 1500 | D11: 1500 | E11: 1500 | F11: 4500 | G11: 2000 | H11: 2400 | I11: 2200 | J11: 6600 | K11: 11100 | L11: 2200 | M11: 2675 | N11: 2800 | O11: 7675 | P11: 3200 | Q11: 3600 | R11: 4100 | S11: 10900 | T11: 18575 | U11: 29675
A14: Site 2 | C14: =SUM(C15:C20) -> $29,700 | D14: $29,700 | E14: $29,700 | F14: $89,100 | G14: $30,200 | H14: $25,800 | I14: $28,100 | J14: $84,100 | K14: $173,200 | L14: $25,100 | M14: $25,575 | N14: $25,700 | O14: $76,375 | P14: $26,100 | Q14: $27,000 | R14: $27,500 | S14: $80,600 | T14: $156,975 | U14: $330,175
B15: Salaries | C15: 7500 | D15: 7500 | E15: 7500 | F15: =SUM(C15:E15) -> 22500 | G15: 7500 | H15: 7500 | I15: 10000 | J15: =SUM(G15:I15) -> 25000 | K15: =J15+F15 -> 47500 | L15: 7500 | M15: 7500 | N15: 7500 | O15: =SUM(L15:N15) -> 22500 | P15: 7500 | Q15: 7500 | R15: 7500 | S15: =SUM(P15:R15) -> 22500 | T15: =S15+O15 -> 45000 | U15: =T15+K15 -> 92500
B16: Supplies | C16: 2000 | D16: 2000 | E16: 2000 | F16: 6000 | G16: 2000 | H16: 2000 | I16: 2000 | J16: 6000 | K16: 12000 | L16: 2000 | M16: 2000 | N16: 2000 | O16: 6000 | P16: 2000 | Q16: 2500 | R16: 2500 | S16: 7000 | T16: 13000 | U16: 25000
B17: Equipment | C17: 8000 | D17: 8000 | E17: 8000 | F17: 24000 | G17: 8000 | H17: 2700 | I17: 2700 | J17: 13400 | K17: 37400 | L17: 2700 | M17: 2700 | N17: 2700 | O17: 8100 | P17: 2700 | Q17: 2700 | R17: 2700 | S17: 8100 | T17: 16200 | U17: 53600
B18: Lease Pmts | C18: 8200 | D18: 8200 | E18: 8200 | F18: 24600 | G18: 8200 | H18: 8200 | I18: 8200 | J18: 24600 | K18: 49200 | L18: 8200 | M18: 8200 | N18: 8200 | O18: 24600 | P18: 8200 | Q18: 8200 | R18: 8200 | S18: 24600 | T18: 49200 | U18: 98400
B19: Advertising | C19: 2500 | D19: 2500 | E19: 2500 | F19: 7500 | G19: 2500 | H19: 3000 | I19: 3000 | J19: 8500 | K19: 16000 | L19: 2500 | M19: 2500 | N19: 2500 | O19: 7500 | P19: 2500 | Q19: 2500 | R19: 2500 | S19: 7500 | T19: 15000 | U19: 31000
B20: Other | C20: 1500 | D20: 1500 | E20: 1500 | F20: 4500 | G20: 2000 | H20: 2400 | I20: 2200 | J20: 6600 | K20: 11100 | L20: 2200 | M20: 2675 | N20: 2800 | O20: 7675 | P20: 3200 | Q20: 3600 | R20: 4100 | S20: 10900 | T20: 18575 | U20: 29675
A23: Site 3 | C23: =SUM(C24:C29) -> $56,000 | D23: $56,000 | E23: $56,000 | F23: $168,000 | G23: $60,000 | H23: $60,900 | I23: $65,700 | J23: $186,600 | K23: $354,600 | L23: $60,700 | M23: $61,175 | N23: $61,300 | O23: $183,175 | P23: $61,700 | Q23: $62,100 | R23: $62,600 | S23: $186,400 | T23: $369,575 | U23: $724,175
B24: Salaries | C24: 20000 | D24: 20000 | E24: 20000 | F24: =SUM(C24:E24) -> 60000 | G24: 22000 | H24: 22000 | I24: 27000 | J24: =SUM(G24:I24) -> 71000 | K24: =J24+F24 -> 131000 | L24: 22000 | M24: 22000 | N24: 22000 | O24: =SUM(L24:N24) -> 66000 | P24: 22000 | Q24: 22000 | R24: 22000 | S24: =SUM(P24:R24) -> 66000 | T24: =S24+O24 -> 132000 | U24: =T24+K24 -> 263000
B25: Supplies | C25: 5000 | D25: 5000 | E25: 5000 | F25: 15000 | G25: 5000 | H25: 5000 | I25: 5000 | J25: 15000 | K25: 30000 | L25: 5000 | M25: 5000 | N25: 5000 | O25: 15000 | P25: 5000 | Q25: 5000 | R25: 5000 | S25: 15000 | T25: 30000 | U25: 60000
B26: Equipment | C26: 9500 | D26: 9500 | E26: 9500 | F26: 28500 | G26: 11000 | H26: 11000 | I26: 11000 | J26: 33000 | K26: 61500 | L26: 11000 | M26: 11000 | N26: 11000 | O26: 33000 | P26: 11000 | Q26: 11000 | R26: 11000 | S26: 33000 | T26: 66000 | U26: 127500
B27: Lease Pmts | C27: 17000 | D27: 17000 | E27: 17000 | F27: 51000 | G27: 17000 | H27: 17000 | I27: 17000 | J27: 51000 | K27: 102000 | L27: 17000 | M27: 17000 | N27: 17000 | O27: 51000 | P27: 17000 | Q27: 17000 | R27: 17000 | S27: 51000 | T27: 102000 | U27: 204000
B28: Advertising | C28: 3000 | D28: 3000 | E28: 3000 | F28: 9000 | G28: 3000 | H28: 3500 | I28: 3500 | J28: 10000 | K28: 19000 | L28: 3500 | M28: 3500 | N28: 3500 | O28: 10500 | P28: 3500 | Q28: 3500 | R28: 3500 | S28: 10500 | T28: 21000 | U28: 40000
B29: Other | C29: 1500 | D29: 1500 | E29: 1500 | F29: 4500 | G29: 2000 | H29: 2400 | I29: 2200 | J29: 6600 | K29: 11100 | L29: 2200 | M29: 2675 | N29: 2800 | O29: 7675 | P29: 3200 | Q29: 3600 | R29: 4100 | S29: 10900 | T29: 18575 | U29: 29675
A32: Site 4 | C32: =SUM(C33:C38) -> $28,500 | D32: $28,750 | E32: $28,750 | F32: $86,000 | G32: $29,250 | H32: $29,650 | I32: $30,100 | J32: $89,000 | K32: $175,000 | L32: $29,450 | M32: $29,925 | N32: $30,050 | O32: $89,425 | P32: $30,450 | Q32: $30,850 | R32: $31,350 | S32: $92,650 | T32: $182,075 | U32: $357,075
B33: Salaries | C33: 7700 | D33: 7700 | E33: 7700 | F33: =SUM(C33:E33) -> 23100 | G33: 7700 | H33: 7700 | I33: 8350 | J33: =SUM(G33:I33) -> 23750 | K33: =J33+F33 -> 46850 | L33: 7700 | M33: 7700 | N33: 7700 | O33: =SUM(L33:N33) -> 23100 | P33: 7700 | Q33: 7700 | R33: 7700 | S33: =SUM(P33:R33) -> 23100 | T33: =S33+O33 -> 46200 | U33: =T33+K33 -> 93050
B34: Supplies | C34: 2100 | D34: 2350 | E34: 2350 | F34: 6800 | G34: 2350 | H34: 2350 | I34: 2350 | J34: 7050 | K34: 13850 | L34: 2350 | M34: 2350 | N34: 2350 | O34: 7050 | P34: 2350 | Q34: 2350 | R34: 2350 | S34: 7050 | T34: 14100 | U34: 27950
B35: Equipment | C35: 6500 | D35: 6500 | E35: 6500 | F35: 19500 | G35: 6500 | H35: 6500 | I35: 6500 | J35: 19500 | K35: 39000 | L35: 6500 | M35: 6500 | N35: 6500 | O35: 19500 | P35: 6500 | Q35: 6500 | R35: 6500 | S35: 19500 | T35: 39000 | U35: 78000
B36: Lease Pmts | C36: 8500 | D36: 8500 | E36: 8500 | F36: 25500 | G36: 8500 | H36: 8500 | I36: 8500 | J36: 25500 | K36: 51000 | L36: 8500 | M36: 8500 | N36: 8500 | O36: 25500 | P36: 8500 | Q36: 8500 | R36: 8500 | S36: 25500 | T36: 51000 | U36: 102000
B37: Advertising | C37: 2200 | D37: 2200 | E37: 2200 | F37: 6600 | G37: 2200 | H37: 2200 | I37: 2200 | J37: 6600 | K37: 13200 | L37: 2200 | M37: 2200 | N37: 2200 | O37: 6600 | P37: 2200 | Q37: 2200 | R37: 2200 | S37: 6600 | T37: 13200 | U37: 26400
B38: Other | C38: 1500 | D38: 1500 | E38: 1500 | F38: 4500 | G38: 2000 | H38: 2400 | I38: 2200 | J38: 6600 | K38: 11100 | L38: 2200 | M38: 2675 | N38: 2800 | O38: 7675 | P38: 3200 | Q38: 3600 | R38: 4100 | S38: 10900 | T38: 18575 | U38: 29675
A41: Site 5 | C41: =SUM(C42:C47) -> $74,450 | D41: $74,450 | E41: $74,450 | F41: $223,350 | G41: $76,500 | H41: $76,900 | I41: $80,700 | J41: $234,100 | K41: $457,450 | L41: $77,625 | M41: $80,200 | N41: $80,325 | O41: $238,150 | P41: $80,800 | Q41: $81,200 | R41: $81,700 | S41: $243,700 | T41: $481,850 | U41: $939,300
B42: Salaries | C42: 31500 | D42: 31500 | E42: 31500 | F42: =SUM(C42:E42) -> 94500 | G42: 33000 | H42: 33000 | I42: 37000 | J42: =SUM(G42:I42) -> 103000 | K42: =J42+F42 -> 197500 | L42: 33000 | M42: 35100 | N42: 35100 | O42: =SUM(L42:N42) -> 103200 | P42: 35100 | Q42: 35100 | R42: 35100 | S42: =SUM(P42:R42) -> 105300 | T42: =S42+O42 -> 208500 | U42: =T42+K42 -> 406000
B43: Supplies | C43: 7450 | D43: 7450 | E43: 7450 | F43: 22350 | G43: 7450 | H43: 7450 | I43: 7450 | J43: 22350 | K43: 44700 | L43: 8200 | M43: 8200 | N43: 8200 | O43: 24600 | P43: 8200 | Q43: 8200 | R43: 8200 | S43: 24600 | T43: 49200 | U43: 93900
B44: Equipment | C44: 8000 | D44: 8000 | E44: 8000 | F44: 24000 | G44: 8000 | H44: 8000 | I44: 8000 | J44: 24000 | K44: 48000 | L44: 8100 | M44: 8100 | N44: 8100 | O44: 24300 | P44: 8100 | Q44: 8100 | R44: 8100 | S44: 24300 | T44: 48600 | U44: 96600
B45: Lease Pmts | C45: 23550 | D45: 23550 | E45: 23550 | F45: 70650 | G45: 23550 | H45: 23550 | I45: 23550 | J45: 70650 | K45: 141300 | L45: 23550 | M45: 23550 | N45: 23550 | O45: 70650 | P45: 23550 | Q45: 23550 | R45: 23550 | S45: 70650 | T45: 141300 | U45: 282600
B46: Advertising | C46: 2450 | D46: 2450 | E46: 2450 | F46: 7350 | G46: 2500 | H46: 2500 | I46: 2500 | J46: 7500 | K46: 14850 | L46: 2575 | M46: 2575 | N46: 2575 | O46: 7725 | P46: 2650 | Q46: 2650 | R46: 2650 | S46: 7950 | T46: 15675 | U46: 30525
B47: Other | C47: 1500 | D47: 1500 | E47: 1500 | F47: 4500 | G47: 2000 | H47: 2400 | I47: 2200 | J47: 6600 | K47: 11100 | L47: 2200 | M47: 2675 | N47: 2800 | O47: 7675 | P47: 3200 | Q47: 3600 | R47: 4100 | S47: 10900 | T47: 18575 | U47: 29675
A51: TOTAL EXPENDITURES | C51: =SUM(C52:C57) -> $219,825 | D51: $219,575 | E51: $220,075 | F51: $659,475 | G51: $227,125 | H51: $225,325 | I51: $238,975 | J51: $691,425 | K51: $1,350,900 | L51: $227,050 | M51: $231,025 | N51: $232,150 | O51: $690,225 | P51: $233,725 | Q51: $236,725 | R51: $238,725 | S51: $709,175 | T51: $1,399,400 | U51: $2,750,300
B52: Salaries | C52: =C42+C33+C24+C15+C6 -> 76700 | D52: 76700 | E52: 76700 | F52: =SUM(C52:E52) -> 230100 | G52: =G42+G33+G24+G15+G6 -> 80200 | H52: 80200 | I52: 95350 | J52: =SUM(G52:I52) -> 255750 | K52: =J52+F52 -> 485850 | L52: =L42+L33+L24+L15+L6 -> 82200 | M52: 84300 | N52: 84300 | O52: =SUM(L52:N52) -> 250800 | P52: =P42+P33+P24+P15+P6 -> 84300 | Q52: 84300 | R52: 84300 | S52: =SUM(P52:R52) -> 252900 | T52: =S52+O52 -> 503700 | U52: =T52+K52 -> 989550
B53: Supplies | C53: 19550 | D53: 19300 | E53: 19800 | F53: 58650 | G53: 19300 | H53: 19800 | I53: 19300 | J53: 58400 | K53: 117050 | L53: 20850 | M53: 20350 | N53: 20850 | O53: 62050 | P53: 20350 | Q53: 21350 | R53: 20850 | S53: 62550 | T53: 124600 | U53: 241650
B54: Equipment | C54: 36575 | D54: 36575 | E54: 36575 | F54: 109725 | G54: 38075 | H54: 32775 | I54: 32775 | J54: 103625 | K54: 213350 | L54: 32875 | M54: 32875 | N54: 32875 | O54: 98625 | P54: 32875 | Q54: 32875 | R54: 32875 | S54: 98625 | T54: 197250 | U54: 410600
B55: Lease Pmts | C55: 66850 | D55: 66850 | E55: 66850 | F55: 200550 | G55: 66850 | H55: 66850 | I55: 66850 | J55: 200550 | K55: 401100 | L55: 66850 | M55: 66850 | N55: 66850 | O55: 200550 | P55: 66850 | Q55: 66850 | R55: 66850 | S55: 200550 | T55: 401100 | U55: 802200
B56: Advertising | C56: 12650 | D56: 12650 | E56: 12650 | F56: 37950 | G56: 12700 | H56: 13700 | I56: 13700 | J56: 40100 | K56: 78050 | L56: 13275 | M56: 13275 | N56: 13275 | O56: 39825 | P56: 13350 | Q56: 13350 | R56: 13350 | S56: 40050 | T56: 79875 | U56: 157925
B57: Other | C57: 7500 | D57: 7500 | E57: 7500 | F57: 22500 | G57: 10000 | H57: 12000 | I57: 11000 | J57: 33000 | K57: 55500 | L57: 11000 | M57: 13375 | N57: 14000 | O57: 38375 | P57: 16000 | Q57: 18000 | R57: 20500 | S57: 54500 | T57: 92875 | U57: 148375
